[Event "Early-Titled-Tuesday-Blitz-September-12-2023"]
[Site "Chess.com"]
[Date "2023.09.12"]
[Round "3"]
[White "assezde36"]
[Black "Zheenbekov86"]
[Result "1-0"]
[WhiteElo "2819"]
[BlackElo "2414"]
[TimeControl "180+1"]
[EndTime "8:27:53 PDT"]
[Termination "assezde36 won on time"]

1. e4 {[%clk 0:02:56.8]} 1... e5 {[%clk 0:02:50]} 2. Nf3 {[%clk 0:02:56.7]} 2...
Nc6 {[%clk 0:02:49.9]} 3. Bc4 {[%clk 0:02:57.2]} 3... Nf6 {[%clk 0:02:49.1]} 4.
d3 {[%clk 0:02:57.7]} 4... Be7 {[%clk 0:02:48.5]} 5. O-O {[%clk 0:02:56.7]} 5...
O-O {[%clk 0:02:48.5]} 6. a4 {[%clk 0:02:57.2]} 6... d5 {[%clk 0:02:46.6]} 7.
exd5 {[%clk 0:02:57.2]} 7... Nxd5 {[%clk 0:02:46.8]} 8. Re1 {[%clk 0:02:57.9]}
8... Bf6 {[%clk 0:02:43.6]} 9. Nbd2 {[%clk 0:02:55.6]} 9... Nf4 {[%clk
0:02:18.1]} 10. Ne4 {[%clk 0:02:54.4]} 10... Be7 {[%clk 0:02:15.6]} 11. Bxf4
{[%clk 0:02:45.8]} 11... exf4 {[%clk 0:02:15]} 12. c3 {[%clk 0:02:39.7]} 12...
Bg4 {[%clk 0:02:06.4]} 13. d4 {[%clk 0:02:38]} 13... Kh8 {[%clk 0:02:03.4]} 14.
Be2 {[%clk 0:02:07.8]} 14... h6 {[%clk 0:01:48.4]} 15. a5 {[%clk 0:02:07.2]}
15... a6 {[%clk 0:01:47.8]} 16. b4 {[%clk 0:02:04.2]} 16... Bh5 {[%clk
0:01:34.3]} 17. Nc5 {[%clk 0:01:58.6]} 17... Rb8 {[%clk 0:01:24.2]} 18. Nd2
{[%clk 0:01:54.2]} 18... Bg6 {[%clk 0:01:07.8]} 19. Bf3 {[%clk 0:01:52.4]} 19...
Bxc5 {[%clk 0:01:04.8]} 20. bxc5 {[%clk 0:01:53.3]} 20... Ne7 {[%clk 0:00:56.3]}
21. Nc4 {[%clk 0:01:35.5]} 21... f6 {[%clk 0:00:53.1]} 22. Qd2 {[%clk
0:01:10.2]} 22... Bf7 {[%clk 0:00:52.4]} 23. Nb2 {[%clk 0:01:09.2]} 23... g5
{[%clk 0:00:47]} 24. Nd3 {[%clk 0:01:08.7]} 24... Nd5 {[%clk 0:00:38.1]} 25. c4
{[%clk 0:01:05.3]} 25... Ne7 {[%clk 0:00:37.8]} 26. d5 {[%clk 0:01:05]} 26...
Ng6 {[%clk 0:00:34.8]} 27. Be4 {[%clk 0:01:03.1]} 27... Nh4 {[%clk 0:00:33.9]}
28. Rab1 {[%clk 0:01:00.5]} 28... f5 {[%clk 0:00:29]} 29. Qc3+ {[%clk
0:01:00.1]} 29... Kh7 {[%clk 0:00:28]} 30. Bf3 {[%clk 0:00:56.4]} 30... g4
{[%clk 0:00:26.9]} 31. Bd1 {[%clk 0:00:56.1]} 31... f3 {[%clk 0:00:26.6]} 32. g3
{[%clk 0:00:52.4]} 32... Ng6 {[%clk 0:00:14.3]} 33. Bc2 {[%clk 0:00:50.8]} 33...
Re8 {[%clk 0:00:12.9]} 34. Rxe8 {[%clk 0:00:48.7]} 34... Qxe8 {[%clk 0:00:11.9]}
35. Qf6 {[%clk 0:00:46.2]} 35... Qe7 {[%clk 0:00:11.4]} 36. Qxe7 {[%clk
0:00:43.8]} 36... Nxe7 {[%clk 0:00:10.8]} 37. Ne5 {[%clk 0:00:44.7]} 37... Bg6
{[%clk 0:00:09.8]} 38. d6 {[%clk 0:00:42.9]} 38... cxd6 {[%clk 0:00:09.6]} 39.
cxd6 {[%clk 0:00:43.8]} 39... Ng8 {[%clk 0:00:06.1]} 40. c5 {[%clk 0:00:41]} 1-0

[Event "Early-Titled-Tuesday-Blitz-September-12-2023"]
[Site "Chess.com"]
[Date "2023.09.12"]
[Round "3"]
[White "Jenia84"]
[Black "Hilary46"]
[Result "0-1"]
[WhiteElo "2374"]
[BlackElo "2564"]
[TimeControl "180+1"]
[EndTime "8:27:53 PDT"]
[Termination "Hilary46 won by checkmate"]

1. Nf3 {[%clk 0:02:57.9]} 1... d5 {[%clk 0:02:59.8]} 2. g3 {[%clk 0:02:56.8]}
2... Nf6 {[%clk 0:02:59.7]} 3. Bg2 {[%clk 0:02:57.3]} 3... c5 {[%clk 0:02:57.6]}
4. O-O {[%clk 0:02:57.8]} 4... e6 {[%clk 0:02:58.3]} 5. d3 {[%clk 0:02:56.9]}
5... Nc6 {[%clk 0:02:57.8]} 6. Bg5 {[%clk 0:02:57.1]} 6... Be7 {[%clk
0:02:57.2]} 7. Nbd2 {[%clk 0:02:56.1]} 7... O-O {[%clk 0:02:56.5]} 8. c3 {[%clk
0:02:55.9]} 8... b5 {[%clk 0:02:56.1]} 9. e4 {[%clk 0:02:55.5]} 9... a5 {[%clk
0:02:51.7]} 10. e5 {[%clk 0:02:46.7]} 10... Nd7 {[%clk 0:02:51.5]} 11. Bxe7
{[%clk 0:02:46.2]} 11... Qxe7 {[%clk 0:02:52.4]} 12. c4 {[%clk 0:02:46.5]} 12...
bxc4 {[%clk 0:02:41]} 13. dxc4 {[%clk 0:02:46.1]} 13... d4 {[%clk 0:02:41.2]}
14. Nxd4 {[%clk 0:02:35.9]} 14... Nxd4 {[%clk 0:02:42.1]} 15. Bxa8 {[%clk
0:02:34.4]} 15... Nxe5 {[%clk 0:02:42.4]} 16. f4 {[%clk 0:02:27.9]} 16... Nec6
{[%clk 0:02:32.6]} 17. Nf3 {[%clk 0:02:24.5]} 17... Nxf3+ {[%clk 0:02:27.8]} 18.
Qxf3 {[%clk 0:02:19.3]} 18... Nd4 {[%clk 0:02:28.7]} 19. Qf2 {[%clk 0:02:01.9]}
19... Bb7 {[%clk 0:02:26.1]} 20. Bxb7 {[%clk 0:02:00.7]} 20... Qxb7 {[%clk
0:02:27]} 21. b3 {[%clk 0:01:59.7]} 21... a4 {[%clk 0:02:24.7]} 22. Rab1 {[%clk
0:01:53]} 22... axb3 {[%clk 0:02:24]} 23. axb3 {[%clk 0:01:52.9]} 23... Rd8
{[%clk 0:02:17.7]} 24. Qe3 {[%clk 0:01:27.2]} 24... h5 {[%clk 0:02:15.9]} 25. h3
{[%clk 0:01:21.1]} 25... Qb4 {[%clk 0:02:06.1]} 26. Rfd1 {[%clk 0:01:13.4]}
26... g6 {[%clk 0:02:04.8]} 27. Kf2 {[%clk 0:01:11]} 27... Ra8 {[%clk
0:02:03.1]} 28. Rb2 {[%clk 0:01:03.1]} 28... Ra3 {[%clk 0:01:43.7]} 29. Rd3
{[%clk 0:00:58.2]} 29... Ra1 {[%clk 0:01:42.4]} 30. h4 {[%clk 0:00:53.9]} 30...
Qb7 {[%clk 0:01:40.8]} 31. Rxd4 {[%clk 0:00:48.8]} 31... cxd4 {[%clk 0:01:39.9]}
32. Qxd4 {[%clk 0:00:49]} 32... Qh1 {[%clk 0:01:38.7]} 33. Qd8+ {[%clk
0:00:41.2]} 33... Kh7 {[%clk 0:01:38.7]} 34. Qf6 {[%clk 0:00:36.6]} 34... Qf1+
{[%clk 0:00:19.6]} 35. Ke3 {[%clk 0:00:34.9]} 35... Qg1+ {[%clk 0:00:08.2]} 36.
Ke4 {[%clk 0:00:20.7]} 36... Re1+ {[%clk 0:00:06.1]} 37. Kd3 {[%clk 0:00:19.4]}
37... Qe3+ {[%clk 0:00:05.9]} 38. Kc2 {[%clk 0:00:18.1]} 38... Rc1# {[%clk
0:00:06.8]} 0-1

[Event "Early-Titled-Tuesday-Blitz-September-12-2023"]
[Site "Chess.com"]
[Date "2023.09.12"]
[Round "3"]
[White "Dixit_Nikhil"]
[Black "FeketeBarika"]
[Result "1-0"]
[WhiteElo "2576"]
[BlackElo "2399"]
[TimeControl "180+1"]
[EndTime "8:27:55 PDT"]
[Termination "Dixit_Nikhil won by resignation"]

1. e4 {[%clk 0:03:00.9]} 1... e6 {[%clk 0:02:54.5]} 2. d4 {[%clk 0:02:59.7]}
2... d5 {[%clk 0:02:51.9]} 3. e5 {[%clk 0:02:59.8]} 3... c5 {[%clk 0:02:45.1]}
4. c3 {[%clk 0:03:00.4]} 4... Nc6 {[%clk 0:02:25.4]} 5. Nf3 {[%clk 0:03:00.8]}
5... Bd7 {[%clk 0:02:17.7]} 6. Be2 {[%clk 0:03:00.6]} 6... Qb6 {[%clk
0:02:15.1]} 7. O-O {[%clk 0:03:00.2]} 7... cxd4 {[%clk 0:02:04.1]} 8. cxd4
{[%clk 0:02:56]} 8... Nh6 {[%clk 0:02:03.3]} 9. Bxh6 {[%clk 0:02:41.2]} 9...
gxh6 {[%clk 0:01:53.6]} 10. Qd2 {[%clk 0:02:27.3]} 10... Bg7 {[%clk 0:01:49.6]}
11. Nc3 {[%clk 0:02:23.5]} 11... O-O {[%clk 0:01:47.4]} 12. h3 {[%clk
0:02:13.6]} 12... f6 {[%clk 0:01:40.9]} 13. exf6 {[%clk 0:02:06.6]} 13... Rxf6
{[%clk 0:01:41.8]} 14. Rad1 {[%clk 0:02:03.2]} 14... Kh8 {[%clk 0:01:36.9]} 15.
Nh2 {[%clk 0:02:02.1]} 15... Rg6 {[%clk 0:01:31.7]} 16. Bd3 {[%clk 0:01:55]}
16... Rg5 {[%clk 0:01:20.4]} 17. Nf3 {[%clk 0:01:50.9]} 17... Rh5 {[%clk
0:01:16.5]} 18. Bb1 {[%clk 0:01:45.5]} 18... Be8 {[%clk 0:00:57.5]} 19. Rfe1
{[%clk 0:01:42.5]} 19... Bf7 {[%clk 0:00:55.2]} 20. Na4 {[%clk 0:01:33.7]} 20...
Qb4 {[%clk 0:00:49.5]} 21. Qxb4 {[%clk 0:01:30.7]} 21... Nxb4 {[%clk 0:00:50.4]}
22. Nc5 {[%clk 0:01:31.6]} 22... Re8 {[%clk 0:00:48]} 23. Nd7 {[%clk 0:01:25.5]}
23... Bg6 {[%clk 0:00:40.5]} 24. Bxg6 {[%clk 0:01:19.8]} 24... hxg6 {[%clk
0:00:41.4]} 25. a3 {[%clk 0:01:20.6]} 25... Nc6 {[%clk 0:00:38.4]} 26. Nde5
{[%clk 0:01:19.8]} 26... Kh7 {[%clk 0:00:37.4]} 27. g4 {[%clk 0:01:13.4]} 27...
Rxh3 {[%clk 0:00:31.2]} 28. Kg2 {[%clk 0:01:13.4]} 28... Nxe5 {[%clk 0:00:27.5]}
29. dxe5 {[%clk 0:01:00.6]} 29... Rxf3 {[%clk 0:00:27.7]} 30. Kxf3 {[%clk
0:01:00.8]} 30... Rf8+ {[%clk 0:00:27.2]} 31. Kg3 {[%clk 0:01:00.1]} 31... g5
{[%clk 0:00:27.4]} 32. Rc1 {[%clk 0:00:59.4]} 32... Rf7 {[%clk 0:00:25.6]} 33.
f3 {[%clk 0:00:58.6]} 33... Kg6 {[%clk 0:00:25.8]} 34. Rc8 {[%clk 0:00:57.9]}
34... Rd7 {[%clk 0:00:20.4]} 35. Kf2 {[%clk 0:00:50]} 35... d4 {[%clk
0:00:19.8]} 36. Ke2 {[%clk 0:00:50]} 36... Bxe5 {[%clk 0:00:18.7]} 37. Kd3
{[%clk 0:00:50.4]} 37... Rd5 {[%clk 0:00:17.9]} 38. Re2 {[%clk 0:00:46.8]} 38...
b5 {[%clk 0:00:15.8]} 39. b4 {[%clk 0:00:46.1]} 39... Kf6 {[%clk 0:00:11.3]} 40.
Rc5 {[%clk 0:00:45.3]} 40... Rxc5 {[%clk 0:00:09.4]} 41. bxc5 {[%clk 0:00:46.2]}
41... a5 {[%clk 0:00:08.9]} 42. c6 {[%clk 0:00:45.7]} 42... b4 {[%clk
0:00:03.8]} 43. Rxe5 {[%clk 0:00:42]} 43... Kxe5 {[%clk 0:00:03.1]} 44. c7
{[%clk 0:00:41.9]} 1-0

[Event "Early-Titled-Tuesday-Blitz-September-12-2023"]
[Site "Chess.com"]
[Date "2023.09.12"]
[Round "3"]
[White "MarijaKuznecova"]
[Black "Bastiandash"]
[Result "1-0"]
[WhiteElo "2399"]
[BlackElo "2550"]
[TimeControl "180+1"]
[EndTime "8:27:55 PDT"]
[Termination "MarijaKuznecova won by resignation"]

1. e4 {[%clk 0:03:00.9]} 1... c5 {[%clk 0:02:56.6]} 2. Nf3 {[%clk 0:03:01.3]}
2... e6 {[%clk 0:02:53.2]} 3. d4 {[%clk 0:03:01.7]} 3... cxd4 {[%clk 0:02:54.1]}
4. Nxd4 {[%clk 0:03:02]} 4... a6 {[%clk 0:02:54.2]} 5. Nc3 {[%clk 0:03:02.5]}
5... b5 {[%clk 0:02:46.6]} 6. g3 {[%clk 0:02:58.9]} 6... Bb7 {[%clk 0:02:46.3]}
7. Bg2 {[%clk 0:02:59.4]} 7... Nf6 {[%clk 0:02:46.3]} 8. Qd3 {[%clk 0:02:59.6]}
8... Qc7 {[%clk 0:02:44.5]} 9. O-O {[%clk 0:02:49.7]} 9... d6 {[%clk 0:02:12.7]}
10. h3 {[%clk 0:02:39.9]} 10... Be7 {[%clk 0:02:11.8]} 11. g4 {[%clk 0:02:37.8]}
11... O-O {[%clk 0:02:09.9]} 12. g5 {[%clk 0:02:34.7]} 12... Nfd7 {[%clk
0:02:09.4]} 13. f4 {[%clk 0:02:34.4]} 13... Nc6 {[%clk 0:01:53.9]} 14. Nxc6
{[%clk 0:01:53.6]} 14... Qxc6 {[%clk 0:01:48.8]} 15. Qg3 {[%clk 0:01:45]} 15...
b4 {[%clk 0:01:43.6]} 16. Ne2 {[%clk 0:01:44.3]} 16... Qxc2 {[%clk 0:01:26.8]}
17. Nd4 {[%clk 0:01:44]} 17... Qc7 {[%clk 0:01:26.8]} 18. Be3 {[%clk 0:01:35.4]}
18... Nc5 {[%clk 0:01:25.6]} 19. Rac1 {[%clk 0:01:29.6]} 19... Qd7 {[%clk
0:01:26]} 20. f5 {[%clk 0:01:26.9]} 20... e5 {[%clk 0:00:23.7]} 21. Nb3 {[%clk
0:01:07.6]} 21... Nxb3 {[%clk 0:00:19.6]} 22. axb3 {[%clk 0:01:06.8]} 22... f6
{[%clk 0:00:20.5]} 23. h4 {[%clk 0:00:47.5]} 23... Rfc8 {[%clk 0:00:20.3]} 24.
Rcd1 {[%clk 0:00:37.1]} 24... a5 {[%clk 0:00:20.2]} 25. h5 {[%clk 0:00:33.7]}
25... fxg5 {[%clk 0:00:08.6]} 26. Bxg5 {[%clk 0:00:32.6]} 26... Bxg5 {[%clk
0:00:08.8]} 27. Qxg5 {[%clk 0:00:33.5]} 27... h6 {[%clk 0:00:09.1]} 28. Qg6
{[%clk 0:00:31.7]} 28... Rf8 {[%clk 0:00:07.8]} 29. Rxd6 {[%clk 0:00:29.3]}
29... Qc7 {[%clk 0:00:05.2]} 30. f6 {[%clk 0:00:23.4]} 30... Rf7 {[%clk
0:00:02.8]} 31. fxg7 {[%clk 0:00:20.6]} 31... Rxf1+ {[%clk 0:00:02.7]} 32. Bxf1
{[%clk 0:00:21.2]} 32... Rd8 {[%clk 0:00:01.5]} 33. Qe6+ {[%clk 0:00:16]} 33...
Kxg7 {[%clk 0:00:01.6]} 34. Qxh6+ {[%clk 0:00:16.2]} 34... Kf7 {[%clk
0:00:01.4]} 1-0

[Event "Early-Titled-Tuesday-Blitz-September-12-2023"]
[Site "Chess.com"]
[Date "2023.09.12"]
[Round "3"]
[White "KVAIDAN"]
[Black "vladgoncharov"]
[Result "0-1"]
[WhiteElo "2299"]
[BlackElo "2543"]
[TimeControl "180+1"]
[EndTime "8:27:57 PDT"]
[Termination "vladgoncharov won by checkmate"]

1. f4 {[%clk 0:03:00.9]} 1... Nf6 {[%clk 0:02:57.9]} 2. Nf3 {[%clk 0:03:00.3]}
2... c5 {[%clk 0:02:57.1]} 3. d3 {[%clk 0:02:59.5]} 3... d5 {[%clk 0:02:52.5]}
4. e3 {[%clk 0:02:59.6]} 4... Nc6 {[%clk 0:02:51]} 5. Be2 {[%clk 0:03:00]} 5...
g6 {[%clk 0:02:50.9]} 6. O-O {[%clk 0:03:00.5]} 6... Bg7 {[%clk 0:02:51.3]} 7.
Kh1 {[%clk 0:03:00.8]} 7... O-O {[%clk 0:02:51]} 8. a4 {[%clk 0:03:01.4]} 8...
Qc7 {[%clk 0:02:47.7]} 9. Nc3 {[%clk 0:03:01.1]} 9... a6 {[%clk 0:02:47.3]} 10.
e4 {[%clk 0:03:00.5]} 10... dxe4 {[%clk 0:02:46.6]} 11. dxe4 {[%clk 0:03:00.7]}
11... Rd8 {[%clk 0:02:44.9]} 12. Qe1 {[%clk 0:03:00.3]} 12... Nd4 {[%clk
0:02:44.5]} 13. Bd1 {[%clk 0:02:59.9]} 13... Nxf3 {[%clk 0:02:42.8]} 14. Bxf3
{[%clk 0:02:59.4]} 14... e5 {[%clk 0:02:18.9]} 15. Qh4 {[%clk 0:02:55.9]} 15...
Be6 {[%clk 0:01:57.2]} 16. fxe5 {[%clk 0:02:47.7]} 16... Nd7 {[%clk 0:01:56.3]}
17. Bg5 {[%clk 0:02:39.4]} 17... Re8 {[%clk 0:01:54.3]} 18. Nd5 {[%clk 0:02:24]}
18... Bxd5 {[%clk 0:01:53.9]} 19. exd5 {[%clk 0:02:24.2]} 19... Nxe5 {[%clk
0:01:52.1]} 20. Be2 {[%clk 0:02:13.1]} 20... Qd6 {[%clk 0:01:41.1]} 21. Rad1
{[%clk 0:02:10]} 21... c4 {[%clk 0:01:39.7]} 22. c3 {[%clk 0:02:07.1]} 22... b5
{[%clk 0:01:39.3]} 23. axb5 {[%clk 0:02:05.6]} 23... axb5 {[%clk 0:01:39.1]} 24.
Rf2 {[%clk 0:02:00.2]} 24... f5 {[%clk 0:01:32.3]} 25. Bf4 {[%clk 0:01:57.7]}
25... Qd7 {[%clk 0:01:11.3]} 26. Qg3 {[%clk 0:01:47.7]} 26... Nf7 {[%clk
0:01:09.8]} 27. Bf3 {[%clk 0:01:40.7]} 27... Be5 {[%clk 0:01:06.9]} 28. d6
{[%clk 0:01:37.5]} 28... Ra6 {[%clk 0:01:01.7]} 29. Bd5 {[%clk 0:01:34.5]} 29...
Rxd6 {[%clk 0:00:55.3]} 30. Rfd2 {[%clk 0:01:26.6]} 30... Bxf4 {[%clk
0:00:46.1]} 31. Bxf7+ {[%clk 0:01:17.3]} 31... Kxf7 {[%clk 0:00:42.2]} 32. Rxd6
{[%clk 0:01:14.4]} 32... Qxd6 {[%clk 0:00:41.5]} 33. Rxd6 {[%clk 0:01:14.3]}
33... Bxg3 {[%clk 0:00:41.7]} 34. hxg3 {[%clk 0:01:14.6]} 34... Re2 {[%clk
0:00:41.1]} 35. Rd7+ {[%clk 0:01:13.6]} 35... Kf6 {[%clk 0:00:40.8]} 36. Rxh7
{[%clk 0:01:12.5]} 36... Rxb2 {[%clk 0:00:40.8]} 37. Rb7 {[%clk 0:01:12.5]}
37... g5 {[%clk 0:00:40.7]} 38. Kh2 {[%clk 0:01:09.4]} 38... g4 {[%clk 0:00:41]}
39. Rb8 {[%clk 0:01:07.2]} 39... Ke5 {[%clk 0:00:40.9]} 40. Rb7 {[%clk
0:01:06.3]} 40... Ke4 {[%clk 0:00:38.8]} 41. Rb8 {[%clk 0:01:03.7]} 41... b4
{[%clk 0:00:31.1]} 42. cxb4 {[%clk 0:01:01.2]} 42... c3 {[%clk 0:00:31.1]} 43.
b5 {[%clk 0:01:00.9]} 43... c2 {[%clk 0:00:30.4]} 44. Rc8 {[%clk 0:01:00.7]}
44... Kd3 {[%clk 0:00:30.6]} 45. Rd8+ {[%clk 0:00:57.3]} 45... Ke2 {[%clk
0:00:30.1]} 46. Rc8 {[%clk 0:00:56.4]} 46... Kd1 {[%clk 0:00:29.7]} 47. Rd8+
{[%clk 0:00:55.6]} 47... Kc1 {[%clk 0:00:29.8]} 48. b6 {[%clk 0:00:50.9]} 48...
Rxb6 {[%clk 0:00:28.6]} 49. Rd5 {[%clk 0:00:47.3]} 49... Kb1 {[%clk 0:00:28.2]}
50. Rxf5 {[%clk 0:00:46]} 50... Rh6+ {[%clk 0:00:25.4]} 51. Kg1 {[%clk
0:00:45.6]} 51... c1=Q+ {[%clk 0:00:25.3]} 52. Rf1 {[%clk 0:00:45.9]} 52...
Qxf1+ {[%clk 0:00:25]} 53. Kxf1 {[%clk 0:00:46.3]} 53... Re6 {[%clk 0:00:24.7]}
54. Kf2 {[%clk 0:00:46.4]} 54... Kc2 {[%clk 0:00:24.9]} 55. Kf1 {[%clk
0:00:46.7]} 55... Kd2 {[%clk 0:00:25.2]} 56. Kf2 {[%clk 0:00:47.2]} 56... Rf6+
{[%clk 0:00:24.1]} 57. Kg1 {[%clk 0:00:45.1]} 57... Ke2 {[%clk 0:00:24.1]} 58.
Kh2 {[%clk 0:00:44.7]} 58... Kf2 {[%clk 0:00:24.1]} 59. Kh1 {[%clk 0:00:44.5]}
59... Rh6# {[%clk 0:00:25]} 0-1

[Event "Early-Titled-Tuesday-Blitz-September-12-2023"]
[Site "Chess.com"]
[Date "2023.09.12"]
[Round "3"]
[White "jguerramzllo"]
[Black "Bugcrusher"]
[Result "1-0"]
[WhiteElo "2845"]
[BlackElo "2456"]
[TimeControl "180+1"]
[EndTime "8:27:58 PDT"]
[Termination "jguerramzllo won by resignation"]

1. e4 {[%clk 0:03:00.9]} 1... e6 {[%clk 0:02:54.6]} 2. d4 {[%clk 0:03:00.2]}
2... d5 {[%clk 0:02:54.1]} 3. Nc3 {[%clk 0:03:00.2]} 3... Bb4 {[%clk 0:02:50.5]}
4. e5 {[%clk 0:02:53.4]} 4... c5 {[%clk 0:02:50.1]} 5. a3 {[%clk 0:02:53.4]}
5... Bxc3+ {[%clk 0:02:50.2]} 6. bxc3 {[%clk 0:02:54.3]} 6... Qa5 {[%clk
0:02:50.7]} 7. Bd2 {[%clk 0:02:53.6]} 7... Qa4 {[%clk 0:02:50.9]} 8. Qb1 {[%clk
0:02:53.1]} 8... c4 {[%clk 0:02:50.7]} 9. h4 {[%clk 0:02:45.4]} 9... Nc6 {[%clk
0:02:48.6]} 10. h5 {[%clk 0:02:43.2]} 10... h6 {[%clk 0:02:49]} 11. Nf3 {[%clk
0:02:35.8]} 11... Bd7 {[%clk 0:02:46.4]} 12. g3 {[%clk 0:02:26.6]} 12... O-O-O
{[%clk 0:02:45.5]} 13. Bg2 {[%clk 0:02:12]} 13... f5 {[%clk 0:02:31.8]} 14. Nh4
{[%clk 0:01:58.7]} 14... Nge7 {[%clk 0:02:27.4]} 15. Bf3 {[%clk 0:01:55]} 15...
Be8 {[%clk 0:02:21.1]} 16. Kf1 {[%clk 0:01:54]} 16... Kb8 {[%clk 0:01:38.6]} 17.
Ng2 {[%clk 0:01:52.2]} 17... Ka8 {[%clk 0:01:28.4]} 18. Nf4 {[%clk 0:01:51.8]}
18... Bf7 {[%clk 0:01:26.7]} 19. Kg2 {[%clk 0:01:52]} 19... Rde8 {[%clk
0:01:19.8]} 20. Qb2 {[%clk 0:01:44.2]} 20... b6 {[%clk 0:01:17.4]} 21. Rh2
{[%clk 0:01:39.2]} 21... Kb7 {[%clk 0:01:15.2]} 22. Rh4 {[%clk 0:01:38.2]} 22...
Ka8 {[%clk 0:01:15.4]} 23. Kh2 {[%clk 0:01:34.7]} 23... Kb7 {[%clk 0:01:15.1]}
24. Rg1 {[%clk 0:01:33]} 24... Reg8 {[%clk 0:01:12.6]} 25. g4 {[%clk 0:01:31.9]}
25... fxg4 {[%clk 0:01:12.6]} 26. Bxg4 {[%clk 0:01:32.3]} 26... Nd8 {[%clk
0:01:10.9]} 27. Qb4 {[%clk 0:01:22.1]} 27... Qxb4 {[%clk 0:01:09.7]} 28. cxb4
{[%clk 0:01:23]} 28... Kc6 {[%clk 0:01:02.2]} 29. a4 {[%clk 0:01:21.5]} 29... a6
{[%clk 0:01:01.8]} 30. Bh3 {[%clk 0:01:15.5]} 30... Nf5 {[%clk 0:00:53.7]} 31.
Bxf5 {[%clk 0:01:14.1]} 31... exf5 {[%clk 0:00:53.7]} 32. Rh3 {[%clk 0:01:12.3]}
32... Ne6 {[%clk 0:00:41.8]} 33. Nxe6 {[%clk 0:01:00.4]} 33... Bxe6 {[%clk
0:00:41.6]} 34. Rhg3 {[%clk 0:01:01.1]} 34... Rh7 {[%clk 0:00:37.1]} 35. Rg6
{[%clk 0:01:01.1]} 35... Kd7 {[%clk 0:00:37.1]} 36. b5 {[%clk 0:00:37.8]} 36...
a5 {[%clk 0:00:34.4]} 37. Kg3 {[%clk 0:00:35.7]} 37... Ke7 {[%clk 0:00:34.7]}
38. Kf4 {[%clk 0:00:31.4]} 38... Kf7 {[%clk 0:00:34.8]} 39. Bc1 {[%clk 0:00:27]}
39... Re8 {[%clk 0:00:34]} 40. Ba3 {[%clk 0:00:27]} 40... Rb8 {[%clk 0:00:27.4]}
41. Bd6 {[%clk 0:00:26.2]} 41... Rb7 {[%clk 0:00:27.7]} 42. Bf8 {[%clk
0:00:20.5]} 42... Kxf8 {[%clk 0:00:16.9]} 43. Rxe6 {[%clk 0:00:19.8]} 43... g5+
{[%clk 0:00:16.7]} 44. hxg6 {[%clk 0:00:19.4]} 1-0

[Event "Early-Titled-Tuesday-Blitz-September-12-2023"]
[Site "Chess.com"]
[Date "2023.09.12"]
[Round "3"]
[White "Actuary44"]
[Black "JimDiGrease"]
[Result "0-1"]
[WhiteElo "2513"]
[BlackElo "2855"]
[TimeControl "180+1"]
[EndTime "8:27:59 PDT"]
[Termination "JimDiGrease won on time"]

1. e4 {[%clk 0:03:00.9]} 1... c5 {[%clk 0:03:00.2]} 2. d4 {[%clk 0:03:01]} 2...
cxd4 {[%clk 0:03:00.3]} 3. c3 {[%clk 0:03:01.6]} 3... dxc3 {[%clk 0:02:58.6]} 4.
Nxc3 {[%clk 0:03:02.5]} 4... Nc6 {[%clk 0:02:58.9]} 5. f4 {[%clk 0:03:03.1]}
5... e6 {[%clk 0:02:37.6]} 6. Nf3 {[%clk 0:03:03.6]} 6... Bc5 {[%clk 0:02:29.9]}
7. Bd3 {[%clk 0:03:03.6]} 7... d6 {[%clk 0:02:30.2]} 8. Qe2 {[%clk 0:03:03.5]}
8... Nf6 {[%clk 0:02:27.7]} 9. Bd2 {[%clk 0:03:03.1]} 9... e5 {[%clk 0:02:21.3]}
10. O-O-O {[%clk 0:03:02.6]} 10... Bg4 {[%clk 0:02:14.9]} 11. Kb1 {[%clk
0:02:56.7]} 11... O-O {[%clk 0:02:13]} 12. h3 {[%clk 0:02:55.3]} 12... Nd4
{[%clk 0:02:10.5]} 13. Qf1 {[%clk 0:02:54.8]} 13... Bxf3 {[%clk 0:02:10.5]} 14.
gxf3 {[%clk 0:02:55.2]} 14... Nh5 {[%clk 0:02:05.3]} 15. Rg1 {[%clk 0:02:43.4]}
15... Ne6 {[%clk 0:01:50.1]} 16. fxe5 {[%clk 0:02:30.8]} 16... Bxg1 {[%clk
0:01:43.8]} 17. Qxg1 {[%clk 0:02:31.7]} 17... dxe5 {[%clk 0:01:42.2]} 18. Bc4
{[%clk 0:02:28.9]} 18... Qh4 {[%clk 0:01:31]} 19. Nd5 {[%clk 0:01:28.3]} 19...
Nhf4 {[%clk 0:01:22.6]} 20. Be1 {[%clk 0:01:22.2]} 20... Qxh3 {[%clk 0:01:05.3]}
21. Ne7+ {[%clk 0:01:20.5]} 21... Kh8 {[%clk 0:01:02.8]} 22. Bg3 {[%clk
0:01:10.2]} 22... Qh5 {[%clk 0:00:53.2]} 23. Bxf4 {[%clk 0:00:47.4]} 23... Nxf4
{[%clk 0:00:51.8]} 24. Nf5 {[%clk 0:00:41.3]} 24... g6 {[%clk 0:00:50.7]} 25.
Qc5 {[%clk 0:00:37.9]} 25... Rae8 {[%clk 0:00:35.6]} 26. Nd6 {[%clk 0:00:34.3]}
26... Qxf3 {[%clk 0:00:32.9]} 27. Rf1 {[%clk 0:00:29.4]} 27... Qg2 {[%clk
0:00:28.4]} 28. Nxe8 {[%clk 0:00:26.9]} 28... Rxe8 {[%clk 0:00:20.4]} 29. Rd1
{[%clk 0:00:20.9]} 29... Qxe4+ {[%clk 0:00:18.8]} 30. Ka1 {[%clk 0:00:20]} 30...
Qc2 {[%clk 0:00:14.3]} 31. Re1 {[%clk 0:00:11.1]} 31... Kg7 {[%clk 0:00:10.8]}
32. Qc7 {[%clk 0:00:06.5]} 32... Re6 {[%clk 0:00:09]} 33. a3 {[%clk 0:00:04.1]}
33... b5 {[%clk 0:00:08.1]} 0-1